fUSD/lending_fUSD_20250716
["ID","MTS","AMOUNT","RATE_DAILY","PERIOD"]
[372439493,1752646239961,-479.77,0.00021917,2]
[372439495,1752646239971,-460.0,0.00021917,2]
[372439497,1752646239980,-460.0,0.00021917,2]
[372439499,1752646239990,-460.0,0.00021917,2]
[372439501,1752646240000,-460.0,0.00021917,2]
[372439503,1752646240013,-151.0,0.00021917,2]
[372439505,1752646240022,-151.0,0.00021917,2]
[372439507,1752646240033,-151.0,0.00021917,2]
[372439509,1752646240042,-151.0,0.00021917,2]
[372439511,1752646240054,-151.0,0.00021917,2]
[372439513,1752646240064,-151.0,0.00021917,2]
[372439515,1752646240074,-460.0,0.00021917,2]
[372439517,1752646240084,-151.0,0.00021917,2]
[372439519,1752646240094,-151.0,0.00021917,2]
[372439521,1752646240104,-460.0,0.00021917,2]
[372439524,1752646240114,-151.0,0.00021917,2]
[372439526,1752646240124,-151.0,0.00021917,2]
[372439528,1752646240133,-151.0,0.00021917,2]
[372439529,1752646240144,-297.526979,0.00021917,2]
[372439531,1752646240155,-460.0,0.00021917,2]
[372439533,1752646240166,-460.0,0.00021917,2]
[372439535,1752646240177,-460.0,0.00021917,2]
[372439537,1752646240187,-460.0,0.00021917,2]
[372439540,1752646240196,-460.0,0.00021917,2]
[372439541,1752646240206,-817.61,0.00021917,2]
[372439544,1752646240215,-460.0,0.00021917,2]
[372439545,1752646240225,-460.0,0.00021917,2]
[372439548,1752646240235,-460.0,0.00021917,2]
[372439550,1752646240244,-500.0,0.00021917,2]
[372439551,1752646240254,-500.0,0.00021917,2]
[372439552,1752646240263,-500.0,0.00021917,2]
[372439553,1752646240273,-500.0,0.00021917,2]
[372439554,1752646240282,-500.0,0.00021917,2]
[372439555,1752646240291,-500.0,0.00021917,2]
[372439556,1752646240301,-500.0,0.00021917,2]
[372439557,1752646240310,-249.34,0.00021917,2]
[372439558,1752646240319,-151.0,0.00021917,2]
[372439559,1752646240330,-151.0,0.00021917,2]
[372439560,1752646240339,-151.0,0.00021917,2]
[372439562,1752646240349,-154.148355,0.00021917,2]
[372439563,1752646240358,-460.0,0.00021917,2]
[372439565,1752646240367,-1264.97,0.00021917,2]
[372439567,1752646240378,-460.0,0.00021917,2]
[372439569,1752646240388,-460.0,0.00021917,2]
[372439570,1752646240398,-460.0,0.00021917,2]
[372439572,1752646240407,-460.0,0.00021917,2]
[372439574,1752646240417,-1064.23,0.00021917,2]
[372439576,1752646240426,-505.59526122,0.00021917,2]
[372439578,1752646240436,-460.0,0.00021917,2]
[372439580,1752646240446,-460.0,0.00021917,2]
[372439582,1752646240455,-460.0,0.00021917,2]
[372439584,1752646240464,-460.0,0.00021917,2]
[372439586,1752646240474,-1302.99,0.00021917,2]
[372439588,1752646240484,-460.0,0.00021917,2]
[372439590,1752646240493,-542.66064913,0.00021917,2]
[372439592,1752646240503,-460.0,0.00021917,2]
[372439594,1752646240512,-460.0,0.00021917,2]
[372439596,1752646240521,-696.07,0.00021917,2]
[372439598,1752646240531,-523.84,0.00021917,2]
[372439600,1752646240540,-460.0,0.00021917,2]
[372439602,1752646240550,-150.923723,0.00021917,2]
[372439603,1752646240559,-1162.5,0.00021917,2]
[372439605,1752646240568,-460.0,0.00021917,2]
[372439608,1752646240578,-460.0,0.00021917,2]
[372439609,1752646240588,-460.0,0.00021917,2]
[372439611,1752646240599,-1266.29,0.00021917,2]
[372439613,1752646240609,-2979.34,0.00021917,2]
[372439615,1752646240619,-460.0,0.00021917,2]
[372439617,1752646240629,-460.0,0.00021917,2]
[372439619,1752646240639,-460.0,0.00021917,2]
[372439621,1752646240649,-461.5675347,0.00021917,2]
[372439624,1752646240660,-460.0,0.00021917,2]
[372439625,1752646240670,-460.0,0.00021917,2]
[372439627,1752646240680,-151.532438,0.00021917,2]
[372439630,1752646240690,-597.93,0.00021917,2]
[372439631,1752646240700,-460.0,0.00021917,2]
[372439633,1752646240709,-460.0,0.00021917,2]
[372439635,1752646240719,-151.0,0.00021917,2]
[372439637,1752646240728,-460.0,0.00021917,2]
[372439639,1752646240738,-460.0,0.00021917,2]
[372439641,1752646240748,-460.0,0.00021917,2]
[372439643,1752646240758,-500.0,0.00021917,2]
[372439645,1752646240767,-460.0,0.00021917,2]
[372439647,1752646240777,-460.0,0.00021917,2]
[372439649,1752646240786,-500.0,0.00021917,2]
[372439651,1752646240796,-500.0,0.00021917,2]
[372439653,1752646240805,-500.0,0.00021917,2]
[372439655,1752646240815,-500.0,0.00021917,2]
[372439657,1752646240824,-460.0,0.00021917,2]
[372439659,1752646240834,-500.0,0.00021917,2]
[372439661,1752646240843,-500.0,0.00021917,2]
[372439663,1752646240853,-460.0,0.00021917,2]
[372439665,1752646240862,-500.0,0.00021917,2]
[372439667,1752646240872,-507.0613143,0.00021917,2]
[372439669,1752646240882,-460.0,0.00021917,2]
[372439671,1752646240891,-460.0,0.00021917,2]
[372439673,1752646240901,-585.08,0.00021917,2]
[372439675,1752646240910,-585.08,0.00021917,2]
[372439677,1752646240920,-585.08,0.00021917,2]
[372439679,1752646240930,-585.08,0.00021917,2]
[372439681,1752646240940,-585.08,0.00021917,2]
[372439683,1752646240950,-585.08,0.00021917,2]
[372439685,1752646240960,-152.839817,0.00021917,2]
[372439687,1752646240970,-3230.590099,0.00021917,2]
[372439689,1752646240980,-460.0,0.00021917,2]
[372439691,1752646240989,-460.0,0.00021917,2]
[372439693,1752646241000,-460.54169721,0.00021917,2]
[372439695,1752646241013,-585.08,0.00021917,2]
[372439697,1752646241022,-158.061984,0.00021917,2]
[372439699,1752646241032,-585.08,0.00021917,2]
[372439701,1752646241041,-585.08,0.00021917,2]
[372439703,1752646241053,-460.0,0.00021917,2]
[372439705,1752646241062,-585.08,0.00021917,2]
[372439707,1752646241071,-460.0,0.00021917,2]
[372439709,1752646241081,-460.0,0.00021917,2]
[372439711,1752646241092,-3740.90148,0.00021917,2]
[372439713,1752646241103,-460.0,0.00021917,2]
[372439715,1752646241113,-460.0,0.00021917,2]
[372439717,1752646241123,-460.0,0.00021917,2]
[372439719,1752646241132,-3676.397568,0.00021917,2]
[372439721,1752646241142,-654.4,0.00021917,2]
[372439723,1752646241151,-493.64,0.00021917,2]
[372439725,1752646241161,-294.191834,0.00021917,2]
[372439727,1752646241170,-460.0,0.00021917,2]
[372439729,1752646241180,-529.24,0.00021917,2]
[372439731,1752646241191,-151.0,0.00021917,2]
[372439733,1752646241200,-186.323779,0.00021917,2]
[372439735,1752646241210,-460.0,0.00021917,2]
[372439737,1752646241220,-460.0,0.00021917,2]
[372439739,1752646241229,-604.26,0.00021917,2]
[372439741,1752646241239,-460.0,0.00021917,2]
[372439743,1752646241249,-153.368387,0.00021917,2]
[372439775,1752646241551,-461.73,0.00021917,2]
[372439777,1752646241562,-460.0,0.00021917,2]
[372439779,1752646241572,-460.0,0.00021917,2]
[372439781,1752646241582,-151.0,0.00021917,2]
[372439783,1752646241592,-151.0,0.00021917,2]
[372439785,1752646241603,-460.0,0.00021917,2]
[372439787,1752646241612,-460.0,0.00021917,2]
[372439789,1752646241622,-151.0,0.00021917,2]
[372439791,1752646241633,-500.0,0.00021917,2]
[372439793,1752646241643,-500.0,0.00021917,2]
[372439795,1752646241652,-500.0,0.00021917,2]
[372439797,1752646241663,-500.0,0.00021917,2]
[372439799,1752646241673,-460.0,0.00021917,2]
[372439801,1752646241683,-151.0,0.00021917,2]
[372439804,1752646241693,-500.0,0.00021917,2]
[372439806,1752646241704,-303.94379622,0.00021917,2]
[372439808,1752646241714,-500.0,0.00021917,2]
[372439810,1752646241723,-500.0,0.00021917,2]
[372439811,1752646241734,-500.0,0.00021917,2]
[372439813,1752646241744,-500.0,0.00021917,2]
[372439816,1752646241754,-500.0,0.00021917,2]
[372439818,1752646241764,-500.0,0.00021917,2]
[372439820,1752646241774,-461.17897847,0.00021917,2]
[372439822,1752646241783,-460.0,0.00021917,2]
[372439824,1752646241795,-1173.99,0.00021917,2]
[372439826,1752646241807,-460.0,0.00021917,2]
[372439827,1752646241819,-1298.51,0.00021917,2]
[372439830,1752646241831,-462.36796185,0.00021917,2]
[372439832,1752646241842,-500.0,0.00021917,2]
[372439834,1752646241853,-480.0,0.00021917,2]
[372439835,1752646241863,-627.52,0.00021917,2]
[372439837,1752646241873,-1184.75,0.00021917,2]
[372439839,1752646241883,-460.0,0.00021917,2]
[372439841,1752646241893,-460.0,0.00021917,2]
[372439844,1752646241903,-460.0,0.00021917,2]
[372439846,1752646241913,-151.0,0.00021917,2]
[372439848,1752646241922,-151.0,0.00021917,2]
[372439850,1752646241932,-267.548916,0.00021917,2]
[372439852,1752646241942,-461.03171597,0.00021917,2]
[372439854,1752646241953,-460.0,0.00021917,2]
[372439856,1752646241963,-460.0,0.00021917,2]
[372439857,1752646241973,-460.0,0.00021917,2]
[372439859,1752646241982,-603.04,0.00021917,2]
[372439861,1752646241992,-460.0,0.00021917,2]
[372439863,1752646242003,-1765.24,0.00021917,2]
[372439866,1752646242022,-461.43735828,0.00021917,2]
[372439868,1752646242032,-170.01588957,0.00021917,2]
[372439870,1752646242042,-480.99,0.00021917,2]
[372439872,1752646242051,-460.0,0.00021917,2]
[372439874,1752646242061,-460.0,0.00021917,2]
[372439876,1752646242071,-460.0,0.00021917,2]
[372439878,1752646242081,-460.0,0.00021917,2]
[372439880,1752646242091,-460.0,0.00021917,2]
[372439882,1752646242100,-460.0,0.00021917,2]
[372439884,1752646242112,-460.0,0.00021917,2]
[372439886,1752646242122,-460.0,0.00021917,2]
[372439888,1752646242131,-460.0,0.00021917,2]
[372439890,1752646242141,-460.0,0.00021917,2]
[372439892,1752646242150,-460.0,0.00021917,2]
[372439894,1752646242160,-460.0,0.00021917,2]
[372439896,1752646242170,-460.0,0.00021917,2]
[372439898,1752646242180,-461.47165208,0.00021917,2]
[372439900,1752646242189,-460.0,0.00021917,2]
[372439902,1752646242199,-460.0,0.00021917,2]
[372439904,1752646242209,-460.0,0.00021917,2]
[372439906,1752646242219,-460.0,0.00021917,2]
[372439908,1752646242230,-460.0,0.00021917,2]
[372439910,1752646242240,-460.0,0.00021917,2]
[372439912,1752646242250,-606.5,0.00021917,2]
[372439914,1752646242261,-460.0,0.00021917,2]
[372439916,1752646242271,-460.0,0.00021917,2]
[372439918,1752646242280,-530.8,0.00021917,2]
[372439920,1752646242290,-460.0,0.00021917,2]
[372439922,1752646242300,-460.0,0.00021917,2]
[372439924,1752646242310,-460.0,0.00021917,2]
[372439926,1752646242319,-820.08,0.00021917,2]
[372439928,1752646242329,-252.14489683,0.00021917,2]
[372439930,1752646242339,-460.0,0.00021917,2]
[372439932,1752646242349,-556.52860107,0.00021917,2]
[372439934,1752646242358,-460.0,0.00021917,2]
[372439936,1752646242367,-151.0,0.00021917,2]
[372439938,1752646242376,-534.29,0.00021917,2]
[372439940,1752646242385,-523.03,0.00021917,2]
[372439942,1752646242395,-534.29,0.00021917,2]
[372439944,1752646242404,-534.29,0.00021917,2]
[372439946,1752646242414,-534.29,0.00021917,2]
[372439948,1752646242423,-534.29,0.00021917,2]
[372439949,1752646242432,-534.29,0.00021917,2]
[372439950,1752646242442,-534.29,0.00021917,2]
[372439951,1752646242451,-534.29,0.00021917,2]
[372439952,1752646242461,-460.0,0.00021917,2]
[372439953,1752646242470,-534.29,0.00021917,2]
[372439954,1752646242479,-534.29,0.00021917,2]
[372439955,1752646242489,-534.29,0.00021917,2]
[372439956,1752646242498,-460.0,0.00021917,2]
[372439957,1752646242507,-151.0,0.00021917,2]
[372439959,1752646242517,-151.0,0.00021917,2]
[372439961,1752646242527,-1050.8,0.00021917,2]
[372439963,1752646242536,-151.0,0.00021917,2]
[372439965,1752646242545,-151.0,0.00021917,2]
[372439967,1752646242555,-151.0,0.00021917,2]
[372439969,1752646242564,-574.55724694,0.00021917,2]
[372439971,1752646242573,-151.0,0.00021917,2]
[372439973,1752646242582,-460.0,0.00021917,2]
[372439975,1752646242591,-151.0,0.00021917,2]
[372439977,1752646242600,-151.0,0.00021917,2]
[372439979,1752646242611,-151.0,0.00021917,2]
[372439981,1752646242620,-277.59379,0.00021917,2]
[372439983,1752646242630,-460.0,0.00021917,2]
[372439985,1752646242639,-460.0,0.00021917,2]
[372439987,1752646242649,-574.7,0.00021917,2]
[372439989,1752646242658,-914.82,0.00021917,2]
[372439991,1752646242667,-460.0,0.00021917,2]
[372439993,1752646242677,-462.18712367,0.00021917,2]
[372439995,1752646242687,-460.0,0.00021917,2]
[372439997,1752646242696,-460.0,0.00021917,2]
[372439999,1752646242705,-1502.12,0.00021917,2]
[372440001,1752646242715,-494.66986843,0.00021917,2]
[372440003,1752646242724,-1134.49,0.00021917,2]
[372440005,1752646242733,-460.0,0.00021917,2]
[372440007,1752646242743,-460.0,0.00021917,2]
[372440009,1752646242753,-460.0,0.00021917,2]
[372440011,1752646242763,-500.0,0.00021917,2]
[372440013,1752646242772,-500.0,0.00021917,2]
[372440015,1752646242782,-500.0,0.00021917,2]
[372440018,1752646242791,-500.0,0.00021917,2]
[372440021,1752646242802,-500.0,0.00021917,2]
[372440024,1752646242811,-500.0,0.00021917,2]
[372440027,1752646242821,-500.0,0.00021917,2]
[372440030,1752646242830,-500.0,0.00021917,2]
[372440033,1752646242840,-500.0,0.00021917,2]
[372440036,1752646242850,-1628.92,0.00021917,2]
[372440039,1752646242860,-650.27,0.00021917,2]
[372440043,1752646242869,-460.0,0.00021917,2]
[372440048,1752646242879,-1468.03,0.00021917,2]
[372440051,1752646242890,-460.0,0.00021917,2]
[372440054,1752646242899,-641.1,0.00021917,2]
[372440057,1752646242909,-460.0,0.00021917,2]
[372440061,1752646242918,-460.0,0.00021917,2]
[372440065,1752646242928,-460.0,0.00021917,2]
[372440068,1752646242938,-460.0,0.00021917,2]
[372440072,1752646242947,-977.88,0.00021917,2]
[372440075,1752646242957,-464.60695455,0.00021917,2]
[372440079,1752646242967,-460.0,0.00021917,2]
[372440082,1752646242977,-460.0,0.00021917,2]
[372440085,1752646242987,-460.0,0.00021917,2]
[372440088,1752646242996,-460.0,0.00021917,2]
[372440091,1752646243008,-460.0,0.00021917,2]
[372440094,1752646243019,-460.0,0.00021917,2]
[372440096,1752646243028,-460.0,0.00021917,2]
[372440100,1752646243038,-460.0,0.00021917,2]
[372440103,1752646243048,-904.45,0.00021917,2]
[372440106,1752646243058,-460.0,0.00021917,2]
[372440110,1752646243068,-460.0,0.00021917,2]
[372440113,1752646243077,-460.0,0.00021917,2]
[372440116,1752646243088,-460.0,0.00021917,2]
[372440119,1752646243099,-460.0,0.00021917,2]
[372440121,1752646243110,-460.0,0.00021917,2]
[372440123,1752646243119,-460.0,0.00021917,2]
[372440125,1752646243129,-460.0,0.00021917,2]
[372440127,1752646243139,-460.0,0.00021917,2]
[372440129,1752646243149,-460.0,0.00021917,2]
[372440131,1752646243159,-460.0,0.00021917,2]
[372440133,1752646243169,-462.22321952,0.00021917,2]
[372440135,1752646243179,-462.24493559,0.00021917,2]
[372440137,1752646243188,-460.0,0.00021917,2]
[372440139,1752646243198,-2143.7,0.00021917,2]
[372440141,1752646243208,-460.0,0.00021917,2]
[372440143,1752646243218,-460.0,0.00021917,2]
[372440145,1752646243227,-460.0,0.00021917,2]
[372440147,1752646243237,-460.0,0.00021917,2]
[372440149,1752646243247,-460.0,0.00021917,2]
[372440151,1752646243257,-460.0,0.00021917,2]
[372440153,1752646243267,-460.73339653,0.00021917,2]
[372440155,1752646243276,-151.0,0.00021917,2]
[372440158,1752646243287,-499.65,0.00021917,2]
[372440159,1752646243297,-500.0,0.00021917,2]
[372440162,1752646243307,-460.0,0.00021917,2]
[372440164,1752646243317,-460.0,0.00021917,2]
[372440166,1752646243326,-460.0,0.00021917,2]
[372440168,1752646243336,-565.02,0.00021917,2]
[372440170,1752646243346,-460.0,0.00021917,2]
[372440172,1752646243356,-632.96,0.00021917,2]
[372440173,1752646243366,-1639.81,0.00021917,2]
[372440175,1752646243376,-151.0,0.00021917,2]
[372440178,1752646243386,-155.829971,0.00021917,2]
[372440182,1752646243396,-460.0,0.00021917,2]
[372440185,1752646243405,-460.0,0.00021917,2]
[372440187,1752646243415,-587.47,0.00021917,2]
[372440188,1752646243424,-460.0,0.00021917,2]
[372440191,1752646243434,-151.0,0.00021917,2]
[372440193,1752646243444,-823.53,0.00021917,2]
[372440195,1752646243453,-460.0,0.00021917,2]
[372440198,1752646243462,-293.187796,0.00021917,2]
[372440201,1752646243471,-460.0,0.00021917,2]
[372440203,1752646243480,-752.3,0.00021917,2]
[372440205,1752646243490,-460.0,0.00021917,2]
[372440207,1752646243502,-797.39,0.00021917,2]
[372440209,1752646243511,-460.0,0.00021917,2]
[372440211,1752646243521,-460.0,0.00021917,2]
[372440213,1752646243531,-460.0,0.00021917,2]
[372440214,1752646243540,-423.35499958,0.00021917,2]
[372440217,1752646243550,-460.0,0.00021917,2]
[372440219,1752646243560,-460.0,0.00021917,2]
[372440222,1752646243569,-460.0,0.00021917,2]
[372440224,1752646243579,-485.26,0.00021917,2]
[372440227,1752646243588,-501.65,0.00021917,2]
[372440229,1752646243598,-471.21,0.00021917,2]
[372440231,1752646243608,-460.0,0.00021917,2]
[372440233,1752646243618,-460.0,0.00021917,2]
[372440235,1752646243628,-677.47,0.00021917,2]
[372440237,1752646243637,-301.717814,0.00021917,2]
[372440239,1752646243647,-1975.12,0.00021917,2]
[372440241,1752646243657,-1302.9,0.00021917,2]
[372440243,1752646243667,-151.0,0.00021917,2]
[372440245,1752646243681,-151.0,0.00021917,2]
[372440247,1752646243690,-151.0,0.00021917,2]
[372440249,1752646243699,-963.99,0.00021917,2]
[372440251,1752646243708,-174.05568958,0.00021917,2]
[372440253,1752646243717,-151.0,0.00021917,2]
[372440255,1752646243726,-564.71,0.00021917,2]
[372440257,1752646243736,-151.0,0.00021917,2]
[372440259,1752646243745,-151.0,0.00021917,2]
[372440261,1752646243755,-151.0,0.00021917,2]
[372440263,1752646243765,-155.316,0.00021917,2]
[372440265,1752646243774,-499.37,0.00021917,2]
[372440267,1752646243783,-460.0,0.00021917,2]
[372440269,1752646243793,-1132.15,0.00021917,2]
[372440271,1752646243802,-671.55,0.00021917,2]
[372440273,1752646243812,-460.0,0.00021917,2]
[372440275,1752646243821,-1147.23,0.00021917,2]
[372440277,1752646243831,-460.0,0.00021917,2]
[372440279,1752646243841,-886.15,0.00021917,2]
[372440281,1752646243850,-233.11917188,0.00021917,2]
[372440283,1752646243862,-467.96446898,0.00021917,2]
[372440285,1752646243872,-460.0,0.00021917,2]
[372440287,1752646243881,-460.0,0.00021917,2]
[372440289,1752646243891,-437.61655254,0.00021917,2]
[372440291,1752646243901,-500.0,0.00021917,2]
[372440293,1752646243911,-1285.7,0.00021917,2]
[372440295,1752646243921,-618.71,0.00021917,2]
[372440307,1752646244034,-1875.96,0.00021917,2]
[372440309,1752646244045,-460.0,0.00021917,2]
[372440312,1752646244055,-460.0,0.00021917,2]
[372440313,1752646244064,-1000.0,0.00021917,2]
[372440315,1752646244074,-859.58,0.00021917,2]
[372440317,1752646244083,-460.0,0.00021917,2]
[372440320,1752646244093,-494.00736175,0.00021917,2]
[372440322,1752646244103,-460.0,0.00021917,2]
[372440324,1752646244114,-460.0,0.00021917,2]
[372440325,1752646244123,-765.56,0.00021917,2]
[372440328,1752646244133,-498.91380861,0.00021917,2]
[372440329,1752646244143,-460.0,0.00021917,2]
[372440331,1752646244151,-460.0,0.00021917,2]
[372440334,1752646244161,-1979.31,0.00021917,2]
[372440336,1752646244171,-460.0,0.00021917,2]
[372440337,1752646244180,-498.57,0.00021917,2]
[372440339,1752646244189,-460.0,0.00021917,2]
[372440341,1752646244199,-460.0,0.00021917,2]
[372440344,1752646244208,-1152.25,0.00021917,2]
[372440346,1752646244218,-1152.25,0.00021917,2]
[372440348,1752646244227,-1152.25,0.00021917,2]
[372440350,1752646244237,-1152.25,0.00021917,2]
[372440352,1752646244249,-1152.25,0.00021917,2]
[372440354,1752646244259,-1152.25,0.00021917,2]
[372440356,1752646244269,-1152.25,0.00021917,2]
[372440358,1752646244278,-1152.25,0.00021917,2]
[372440359,1752646244287,-1152.25,0.00021917,2]
[372440362,1752646244297,-1152.25,0.00021917,2]
[372440364,1752646244306,-1152.25,0.00021917,2]
[372440365,1752646244316,-151.0,0.00021917,2]
[372440368,1752646244326,-151.0,0.00021917,2]
[372440370,1752646244335,-151.0,0.00021917,2]
[372440371,1752646244345,-460.0,0.00021917,2]
[372440372,1752646244360,-151.0,0.00021917,2]
[372440373,1752646244371,-151.0,0.00021917,2]
[372440374,1752646244383,-151.0,0.00021917,2]
[372440375,1752646244393,-241.396834,0.00021917,2]
[372440376,1752646244402,-1184.7,0.00021917,2]
[372440377,1752646244411,-3552.69,0.00021917,2]
[372440378,1752646244420,-460.0,0.00021917,2]
[372440380,1752646244431,-465.04302869,0.00021917,2]
[372440382,1752646244441,-460.0,0.00021917,2]
[372440384,1752646244450,-460.0,0.00021917,2]
[372440386,1752646244460,-460.0,0.00021917,2]
[372440388,1752646244470,-463.03,0.00021917,2]
[372440390,1752646244479,-460.0,0.00021917,2]
[372440392,1752646244489,-460.0,0.00021917,2]
[372440394,1752646244498,-532.37,0.00021917,2]
[372440396,1752646244509,-151.0,0.00021917,2]
[372440398,1752646244518,-1351.67,0.00021917,2]
[372440400,1752646244528,-837.79,0.00021917,2]
[372440402,1752646244537,-460.0,0.00021917,2]
[372440404,1752646244547,-151.0,0.00021917,2]
[372440406,1752646244556,-460.0,0.00021917,2]
[372440408,1752646244565,-151.0,0.00021917,2]
[372440410,1752646244575,-182.940037,0.00021917,2]
[372440412,1752646244585,-4348.17,0.00021917,2]
[372440414,1752646244602,-519.49,0.00021917,2]
[372440416,1752646244612,-151.0,0.00021917,2]
[372440418,1752646244622,-1611.49,0.00021917,2]
[372440420,1752646244632,-1113.01,0.00021917,2]
[372440422,1752646244645,-460.0,0.00021917,2]
[372440424,1752646244661,-460.0,0.00021917,2]
[372440426,1752646244670,-1859.06,0.00021917,2]
[372440428,1752646244680,-1113.65,0.00021917,2]
[372440431,1752646244690,-460.0,0.00021917,2]
[372440433,1752646244699,-460.0,0.00021917,2]
[372440435,1752646244708,-460.0,0.00021917,2]
[372440437,1752646244718,-460.0,0.00021917,2]
[372440438,1752646244727,-963.39,0.00021917,2]
[372440441,1752646244738,-460.0,0.00021917,2]
[372440442,1752646244747,-1726.9,0.00021917,2]
[372440445,1752646244758,-2174.18,0.00021917,2]
[372440446,1752646244768,-915.83,0.00021917,2]
[372440448,1752646244778,-460.0,0.00021917,2]
[372440451,1752646244788,-460.0,0.00021917,2]
[372440452,1752646244798,-460.0,0.00021917,2]
[372440454,1752646244808,-500.0,0.00021917,2]
[372440456,1752646244819,-151.0,0.00021917,2]
[372440458,1752646244829,-460.0,0.00021917,2]
[372440460,1752646244838,-460.0,0.00021917,2]
[372440463,1752646244848,-460.0,0.00021917,2]
[372440464,1752646244857,-1373.92,0.00021917,2]
[372440466,1752646244867,-460.0,0.00021917,2]
[372440469,1752646244877,-460.0,0.00021917,2]
[372440470,1752646244887,-1776.91,0.00021917,2]
[372440473,1752646244897,-4324.05,0.00021917,2]
[372440475,1752646244907,-1424.31,0.00021917,2]
[372440477,1752646244918,-460.0,0.00021917,2]
[372440478,1752646244928,-151.0,0.00021917,2]
[372440480,1752646244937,-151.0,0.00021917,2]
[372440483,1752646244946,-151.0,0.00021917,2]
[372440484,1752646244956,-151.0,0.00021917,2]
[372440486,1752646244965,-3035.24,0.00021917,2]
[372440488,1752646244975,-151.0,0.00021917,2]
[372440490,1752646244987,-460.0,0.00021917,2]
[372440492,1752646244998,-720.21,0.00021917,2]
[372440494,1752646245011,-151.0,0.00021917,2]
[372440496,1752646245026,-151.0,0.00021917,2]
[372440498,1752646245036,-151.0,0.00021917,2]
[372440500,1752646245046,-683.01,0.00021917,2]
[372440502,1752646245057,-460.0,0.00021917,2]
[372440504,1752646245066,-151.0,0.00021917,2]
[372440506,1752646245076,-286.624337,0.00021917,2]
[372440508,1752646245086,-460.0,0.00021917,2]
[372440510,1752646245095,-151.0,0.00021917,2]
[372440513,1752646245105,-151.0,0.00021917,2]
[372440515,1752646245115,-151.0,0.00021917,2]
[372440517,1752646245124,-171.347007,0.00021917,2]
[372440518,1752646245134,-460.0,0.00021917,2]
[372440521,1752646245144,-1272.22,0.00021917,2]
[372440523,1752646245153,-1511.09,0.00021917,2]
[372440524,1752646245163,-460.0,0.00021917,2]
[372440526,1752646245172,-460.0,0.00021917,2]
[372440528,1752646245182,-460.0,0.00021917,2]
[372440530,1752646245191,-1647.36,0.00021917,2]
[372440532,1752646245201,-559.24,0.00021917,2]
[372440535,1752646245211,-460.0,0.00021917,2]
[372440536,1752646245220,-460.0,0.00021917,2]
[372440539,1752646245230,-460.0,0.00021917,2]
[372440540,1752646245240,-460.0,0.00021917,2]
[372440542,1752646245249,-460.0,0.00021917,2]
[372440544,1752646245258,-460.0,0.00021917,2]
[372440546,1752646245268,-1584.59,0.00021917,2]
[372440549,1752646245277,-460.0,0.00021917,2]
[372440550,1752646245287,-978.38,0.00021917,2]
[372440553,1752646245296,-460.0,0.00021917,2]